Workbook

Sheet By_jour
C1: بيـــان يومـي
A2: النوع | B2: نوع1 | D2: نوع2 | F2: نوع3 | H2: الاجمــــــالى
A3: المـــــــــــوقع | B3: كجم | C3: طن | D3: كجم | E3: طن | F3: كجم | G3: طن | H3: كجم | I3: طن
A4: موقع1 | B4: 2 | C4: 8 | D4: 3 | E4: 4 | F4: 9 | G4: 17 | H4: =MOD(SUM(B4+D4+F4),1000) -> 14 | I4: =TRUNC(SUM(C4+E4+G4)+SUM(B4+D4+F4)/1000) -> 29
A5: موقع2 | B5: 10 | C5: 8 | D5: 7 | E5: 3 | F5: 16 | G5: 16 | H5: =MOD(SUM(B5+D5+F5),1000) -> 33 | I5: =TRUNC(SUM(C5+E5+G5)+SUM(B5+D5+F5)/1000) -> 27
A6: موقع3 | B6: 20 | C6: 4 | D6: 19 | E6: 4 | F6: 11 | G6: 4 | H6: 50 | I6: 12
A7: موقع4 | B7: 17 | C7: 8 | D7: 17 | E7: 18 | F7: 10 | G7: 15 | H7: 44 | I7: 41
A8: موقع5 | B8: 6 | C8: 1 | D8: 10 | E8: 15 | F8: 4 | G8: 8 | H8: 20 | I8: 24
A9: موقع6 | B9: 8 | C9: 7 | D9: 15 | E9: 3 | F9: 17 | G9: 15 | H9: 40 | I9: 25
A10: موقع7 | B10: 7 | C10: 7 | D10: 7 | E10: 1 | F10: 5 | G10: 10 | H10: 19 | I10: 18
A11: موقع8 | B11: 8 | C11: 11 | D11: 6 | E11: 13 | F11: 5 | G11: 7 | H11: 19 | I11: 31
A12: الاجمــــــــــــــــــــــالى | B12: =MOD(SUM(B4:B11),1000) -> 78 | C12: =TRUNC(SUM(C4:C11)+SUM(B4:B11)/1000) -> 54 | D12: =MOD(SUM(D4:D11),1000) -> 84 | E12: =TRUNC(SUM(E4:E11)+SUM(D4:D11)/1000) -> 61 | F12: =MOD(SUM(F4:F11),1000) -> 77 | G12: =TRUNC(SUM(G4:G11)+SUM(F4:F11)/1000) -> 92 | H12: =MOD(SUM(H4:H11),1000) -> 239 | I12: =TRUNC(SUM(I4:I11)+SUM(H4:H11)/1000) -> 207
A14: التـــــاريخ | H14: توقيع المسئول
A15: 2020-05-16

Sheet AP1
C1: بيـــان يومـي
A2: النوع | B2: نوع1 | D2: نوع2 | F2: نوع3 | H2: الاجمــــــالى
A3: التـــــــاريخ | B3: كجم | C3: طن | D3: كجم | E3: طن | F3: كجم | G3: طن | H3: كجم | I3: طن
H4: =MOD(SUM(B4+D4+F4),1000) -> 0 | I4: =TRUNC(SUM(C4+E4+G4)+SUM(B4+D4+F4)/1000) -> 0
H5: =MOD(SUM(B5+D5+F5),1000) -> 0 | I5: =TRUNC(SUM(C5+E5+G5)+SUM(B5+D5+F5)/1000) -> 0
H6: 0 | I6: 0
H7: 0 | I7: 0
H8: 0 | I8: 0
H9: 0 | I9: 0
H10: 0 | I10: 0
H11: 0 | I11: 0
H12: 0 | I12: 0
H13: 0 | I13: 0
H14: 0 | I14: 0
H15: 0 | I15: 0
H16: 0 | I16: 0
H17: 0 | I17: 0
H18: 0 | I18: 0
H19: 0 | I19: 0
A20: الاجمـــــــــالى | B20: =MOD(SUM(B4:B19),1000) -> 0 | C20: =TRUNC(SUM(C4:C19)+SUM(B4:B19)/1000) -> 0 | D20: =MOD(SUM(D4:D19),1000) -> 0 | E20: =TRUNC(SUM(E4:E19)+SUM(D4:D19)/1000) -> 0 | F20: =MOD(SUM(F4:F19),1000) -> 0 | G20: =TRUNC(SUM(G4:G19)+SUM(F4:F19)/1000) -> 0 | H20: =MOD(SUM(H4:H19),1000) -> 0 | I20: =TRUNC(SUM(I4:I19)+SUM(H4:H19)/1000) -> 0

Sheet AP2
A1: بيان بكميات من الفتره 2020/4/15 م وحتى 2020/4/30 م
A2: النوع | B2: نوع1 | D2: نوع2 | F2: نوع3 | H2: الاجمــــــالى
A3: التـــــــاريخ | B3: كجم | C3: طن | D3: كجم | E3: طن | F3: كجم | G3: طن | H3: كجم | I3: طن
A4: 2020-04-16 | B4: 78 | C4: 54 | D4: 84 | E4: 61 | F4: 77 | G4: 92 | H4: 239 | I4: 207
A5: 2020-04-16 | B5: 78 | C5: 54 | D5: 84 | E5: 61 | F5: 77 | G5: 92 | H5: 239 | I5: 207
H6: =MOD(SUM(B6+D6+F6),1000) -> 0 | I6: =TRUNC(SUM(C6+E6+G6)+SUM(B6+D6+F6)/1000) -> 0
H7: 0 | I7: 0
H8: 0 | I8: 0
H9: 0 | I9: 0
H10: 0 | I10: 0
H11: 0 | I11: 0
H12: 0 | I12: 0
H13: 0 | I13: 0
H14: 0 | I14: 0
H15: 0 | I15: 0
H16: 0 | I16: 0
H17: 0 | I17: 0
H18: 0 | I18: 0
H19: 0 | I19: 0
A20: الاجمـــــــــالى | B20: =MOD(SUM(B4:B19),1000) -> 156 | C20: =TRUNC(SUM(C4:C19)+SUM(B4:B19)/1000) -> 108 | D20: =MOD(SUM(D4:D19),1000) -> 168 | E20: =TRUNC(SUM(E4:E19)+SUM(D4:D19)/1000) -> 122 | F20: =MOD(SUM(F4:F19),1000) -> 154 | G20: =TRUNC(SUM(G4:G19)+SUM(F4:F19)/1000) -> 184 | H20: =MOD(SUM(H4:H19),1000) -> 478 | I20: =TRUNC(SUM(I4:I19)+SUM(H4:H19)/1000) -> 414
H22: توقيع المسئول

Sheet May1
A2: النوع | B2: نوع1 | D2: نوع2 | F2: نوع3 | H2: الاجمــــــالى
A3: التـــــــاريخ | B3: كجم | C3: طن | D3: كجم | E3: طن | F3: كجم | G3: طن | H3: كجم | I3: طن
H4: =MOD(SUM(B4+D4+F4),1000) -> 0 | I4: =TRUNC(SUM(C4+E4+G4)+SUM(B4+D4+F4)/1000) -> 0
H5: =MOD(SUM(B5+D5+F5),1000) -> 0 | I5: =TRUNC(SUM(C5+E5+G5)+SUM(B5+D5+F5)/1000) -> 0
H6: 0 | I6: 0
H7: 0 | I7: 0
H8: 0 | I8: 0
H9: 0 | I9: 0
H10: 0 | I10: 0
H11: 0 | I11: 0
H12: 0 | I12: 0
H13: 0 | I13: 0
H14: 0 | I14: 0
H15: 0 | I15: 0
H16: 0 | I16: 0
H17: 0 | I17: 0
H18: 0 | I18: 0
H19: 0 | I19: 0
A20: الاجمـــــــــالى | B20: =MOD(SUM(B4:B19),1000) -> 0 | C20: =TRUNC(SUM(C4:C19)+SUM(B4:B19)/1000) -> 0 | D20: =MOD(SUM(D4:D19),1000) -> 0 | E20: =TRUNC(SUM(E4:E19)+SUM(D4:D19)/1000) -> 0 | F20: =MOD(SUM(F4:F19),1000) -> 0 | G20: =TRUNC(SUM(G4:G19)+SUM(F4:F19)/1000) -> 0 | H20: =MOD(SUM(H4:H19),1000) -> 0 | I20: =TRUNC(SUM(I4:I19)+SUM(H4:H19)/1000) -> 0

Sheet May2
A2: النوع | B2: نوع1 | D2: نوع2 | F2: نوع3 | H2: الاجمــــــالى
A3: التـــــــاريخ | B3: كجم | C3: طن | D3: كجم | E3: طن | F3: كجم | G3: طن | H3: كجم | I3: طن
A4: 2020-05-16 | B4: 78 | C4: 54 | D4: 84 | E4: 61 | F4: 77 | G4: 92 | H4: 239 | I4: 207
A5: 2020-05-16 | B5: 78 | C5: 54 | D5: 84 | E5: 61 | F5: 77 | G5: 92 | H5: 239 | I5: 207
H6: =MOD(SUM(B6+D6+F6),1000) -> 0 | I6: =TRUNC(SUM(C6+E6+G6)+SUM(B6+D6+F6)/1000) -> 0
H7: 0 | I7: 0
H8: 0 | I8: 0
H9: 0 | I9: 0
H10: 0 | I10: 0
H11: 0 | I11: 0
H12: 0 | I12: 0
H13: 0 | I13: 0
H14: 0 | I14: 0
H15: 0 | I15: 0
H16: 0 | I16: 0
H17: 0 | I17: 0
H18: 0 | I18: 0
H19: 0 | I19: 0
A20: الاجمـــــــــالى | B20: =MOD(SUM(B4:B19),1000) -> 156 | C20: =TRUNC(SUM(C4:C19)+SUM(B4:B19)/1000) -> 108 | D20: =MOD(SUM(D4:D19),1000) -> 168 | E20: =TRUNC(SUM(E4:E19)+SUM(D4:D19)/1000) -> 122 | F20: =MOD(SUM(F4:F19),1000) -> 154 | G20: =TRUNC(SUM(G4:G19)+SUM(F4:F19)/1000) -> 184 | H20: =MOD(SUM(H4:H19),1000) -> 478 | I20: =TRUNC(SUM(I4:I19)+SUM(H4:H19)/1000) -> 414

Sheet Jun1
A2: النوع | B2: نوع1 | D2: نوع2 | F2: نوع3 | H2: الاجمــــــالى
A3: التـــــــاريخ | B3: كجم | C3: طن | D3: كجم | E3: طن | F3: كجم | G3: طن | H3: كجم | I3: طن
H4: =MOD(SUM(B4+D4+F4),1000) -> 0 | I4: =TRUNC(SUM(C4+E4+G4)+SUM(B4+D4+F4)/1000) -> 0
H5: =MOD(SUM(B5+D5+F5),1000) -> 0 | I5: =TRUNC(SUM(C5+E5+G5)+SUM(B5+D5+F5)/1000) -> 0
H6: 0 | I6: 0
H7: 0 | I7: 0
H8: 0 | I8: 0
H9: 0 | I9: 0
H10: 0 | I10: 0
H11: 0 | I11: 0
H12: 0 | I12: 0
H13: 0 | I13: 0
H14: 0 | I14: 0
H15: 0 | I15: 0
H16: 0 | I16: 0
H17: 0 | I17: 0
H18: 0 | I18: 0
H19: 0 | I19: 0
A20: الاجمـــــــــالى | B20: =MOD(SUM(B4:B19),1000) -> 0 | C20: =TRUNC(SUM(C4:C19)+SUM(B4:B19)/1000) -> 0 | D20: =MOD(SUM(D4:D19),1000) -> 0 | E20: =TRUNC(SUM(E4:E19)+SUM(D4:D19)/1000) -> 0 | F20: =MOD(SUM(F4:F19),1000) -> 0 | G20: =TRUNC(SUM(G4:G19)+SUM(F4:F19)/1000) -> 0 | H20: =MOD(SUM(H4:H19),1000) -> 0 | I20: =TRUNC(SUM(I4:I19)+SUM(H4:H19)/1000) -> 0

Sheet Jun2
A2: النوع | B2: نوع1 | D2: نوع2 | F2: نوع3 | H2: الاجمــــــالى
A3: التـــــــاريخ | B3: كجم | C3: طن | D3: كجم | E3: طن | F3: كجم | G3: طن | H3: كجم | I3: طن
H4: =MOD(SUM(B4+D4+F4),1000) -> 0 | I4: =TRUNC(SUM(C4+E4+G4)+SUM(B4+D4+F4)/1000) -> 0
H5: =MOD(SUM(B5+D5+F5),1000) -> 0 | I5: =TRUNC(SUM(C5+E5+G5)+SUM(B5+D5+F5)/1000) -> 0
H6: 0 | I6: 0
H7: 0 | I7: 0
H8: 0 | I8: 0
H9: 0 | I9: 0
H10: 0 | I10: 0
H11: 0 | I11: 0
H12: 0 | I12: 0
H13: 0 | I13: 0
H14: 0 | I14: 0
H15: 0 | I15: 0
H16: 0 | I16: 0
H17: 0 | I17: 0
H18: 0 | I18: 0
H19: 0 | I19: 0
A20: الاجمـــــــــالى | B20: =MOD(SUM(B4:B19),1000) -> 0 | C20: =TRUNC(SUM(C4:C19)+SUM(B4:B19)/1000) -> 0 | D20: =MOD(SUM(D4:D19),1000) -> 0 | E20: =TRUNC(SUM(E4:E19)+SUM(D4:D19)/1000) -> 0 | F20: =MOD(SUM(F4:F19),1000) -> 0 | G20: =TRUNC(SUM(G4:G19)+SUM(F4:F19)/1000) -> 0 | H20: =MOD(SUM(H4:H19),1000) -> 0 | I20: =TRUNC(SUM(I4:I19)+SUM(H4:H19)/1000) -> 0

Sheet JUL1
A2: النوع | B2: نوع1 | D2: نوع2 | F2: نوع3 | H2: الاجمــــــالى
A3: التـــــــاريخ | B3: كجم | C3: طن | D3: كجم | E3: طن | F3: كجم | G3: طن | H3: كجم | I3: طن
H4: =MOD(SUM(B4+D4+F4),1000) -> 0 | I4: =TRUNC(SUM(C4+E4+G4)+SUM(B4+D4+F4)/1000) -> 0
H5: =MOD(SUM(B5+D5+F5),1000) -> 0 | I5: =TRUNC(SUM(C5+E5+G5)+SUM(B5+D5+F5)/1000) -> 0
H6: 0 | I6: 0
H7: 0 | I7: 0
H8: 0 | I8: 0
H9: 0 | I9: 0
H10: 0 | I10: 0
H11: 0 | I11: 0
H12: 0 | I12: 0
H13: 0 | I13: 0
H14: 0 | I14: 0
H15: 0 | I15: 0
H16: 0 | I16: 0
H17: 0 | I17: 0
H18: 0 | I18: 0
H19: 0 | I19: 0
A20: الاجمـــــــــالى | B20: =MOD(SUM(B4:B19),1000) -> 0 | C20: =TRUNC(SUM(C4:C19)+SUM(B4:B19)/1000) -> 0 | D20: =MOD(SUM(D4:D19),1000) -> 0 | E20: =TRUNC(SUM(E4:E19)+SUM(D4:D19)/1000) -> 0 | F20: =MOD(SUM(F4:F19),1000) -> 0 | G20: =TRUNC(SUM(G4:G19)+SUM(F4:F19)/1000) -> 0 | H20: =MOD(SUM(H4:H19),1000) -> 0 | I20: =TRUNC(SUM(I4:I19)+SUM(H4:H19)/1000) -> 0

Sheet jul2
A2: النوع | B2: نوع1 | D2: نوع2 | F2: نوع3 | H2: الاجمــــــالى
A3: التـــــــاريخ | B3: كجم | C3: طن | D3: كجم | E3: طن | F3: كجم | G3: طن | H3: كجم | I3: طن
H4: =MOD(SUM(B4+D4+F4),1000) -> 0 | I4: =TRUNC(SUM(C4+E4+G4)+SUM(B4+D4+F4)/1000) -> 0
H5: =MOD(SUM(B5+D5+F5),1000) -> 0 | I5: =TRUNC(SUM(C5+E5+G5)+SUM(B5+D5+F5)/1000) -> 0
H6: 0 | I6: 0
H7: 0 | I7: 0
H8: 0 | I8: 0
H9: 0 | I9: 0
H10: 0 | I10: 0
H11: 0 | I11: 0
H12: 0 | I12: 0
H13: 0 | I13: 0
H14: 0 | I14: 0
H15: 0 | I15: 0
H16: 0 | I16: 0
H17: 0 | I17: 0
H18: 0 | I18: 0
H19: 0 | I19: 0
A20: الاجمـــــــــالى | B20: =MOD(SUM(B4:B19),1000) -> 0 | C20: =TRUNC(SUM(C4:C19)+SUM(B4:B19)/1000) -> 0 | D20: =MOD(SUM(D4:D19),1000) -> 0 | E20: =TRUNC(SUM(E4:E19)+SUM(D4:D19)/1000) -> 0 | F20: =MOD(SUM(F4:F19),1000) -> 0 | G20: =TRUNC(SUM(G4:G19)+SUM(F4:F19)/1000) -> 0 | H20: =MOD(SUM(H4:H19),1000) -> 0 | I20: =TRUNC(SUM(I4:I19)+SUM(H4:H19)/1000) -> 0

Sheet ALL
C1: اجمالى كلى
A2: النوع | B2: نوع1 | D2: نوع2 | F2: نوع3 | H2: الاجمــــــالى
A3: المـــــــــــوقع | B3: كجم | C3: طن | D3: كجم | E3: طن | F3: كجم | G3: طن | H3: كجم | I3: طن
A4: ابريل2 | H4: =MOD(SUM(B4+D4+F4),1000) -> 0 | I4: =TRUNC(SUM(C4+E4+G4)+SUM(B4+D4+F4)/1000) -> 0
A5: مايو1 | H5: =MOD(SUM(B5+D5+F5),1000) -> 0 | I5: =TRUNC(SUM(C5+E5+G5)+SUM(B5+D5+F5)/1000) -> 0
A6: مايو2 | H6: 0 | I6: 0
A7: يونيو1 | H7: 0 | I7: 0
A8: يونيو2 | H8: 0 | I8: 0
A9: يوليو1 | H9: 0 | I9: 0
A10: يوليو2 | H10: 0 | I10: 0
H11: 0 | I11: 0
A12: الاجمــــــــــــــــــــــالى | B12: =MOD(SUM(B4:B11),1000) -> 0 | C12: =TRUNC(SUM(C4:C11)+SUM(B4:B11)/1000) -> 0 | D12: =MOD(SUM(D4:D11),1000) -> 0 | E12: =TRUNC(SUM(E4:E11)+SUM(D4:D11)/1000) -> 0 | F12: =MOD(SUM(F4:F11),1000) -> 0 | G12: =TRUNC(SUM(G4:G11)+SUM(F4:F11)/1000) -> 0 | H12: =MOD(SUM(H4:H11),1000) -> 0 | I12: =TRUNC(SUM(I4:I11)+SUM(H4:H11)/1000) -> 0
A14: التـــــاريخ | H14: توقيع المسئول
